fUSD/lending_fUSD_20260512
["ID","MTS","AMOUNT","RATE_DAILY","PERIOD"]
[422125446,1778590255000,-912.67522,0.00041096,120]
[422125451,1778590255000,-151.0,0.00041096,120]
[422125453,1778590255000,-151.0,0.00041096,120]
[422125457,1778590255000,-151.0,0.00041096,120]
[422125461,1778590255000,-151.0,0.00041096,120]
[422125455,1778590255000,-151.0,0.00041096,120]
[422125454,1778590255000,-151.0,0.00041096,120]
[422125434,1778590255000,-912.67522,0.00041096,120]
[422125448,1778590255000,-912.67522,0.00041096,120]
[422125433,1778590255000,-912.67522,0.00041096,120]
[422125418,1778590255000,-226.128836,0.00041096,120]
[422125429,1778590255000,-226.128836,0.00041096,120]
[422125458,1778590255000,-151.0,0.00041096,120]
[422125408,1778590255000,-151.0,0.00041096,120]
[422125406,1778590255000,-151.0,0.00041096,120]
[422125411,1778590255000,-226.128836,0.00041096,120]
[422125410,1778590255000,-244.450179,0.00041096,120]
[422125413,1778590255000,-226.128836,0.00041096,120]
[422125409,1778590255000,-151.0,0.00041096,120]
[422125405,1778590255000,-151.0,0.00041096,120]
[422125412,1778590255000,-226.128836,0.00041096,120]
[422125415,1778590255000,-226.128836,0.00041096,120]
[422125416,1778590255000,-226.128836,0.00041096,120]
[422125431,1778590255000,-912.67522,0.00041096,120]
[422125414,1778590255000,-226.128836,0.00041096,120]
[422125430,1778590255000,-226.128836,0.00041096,120]
[422125420,1778590255000,-226.128836,0.00041096,120]
[422125419,1778590255000,-226.128836,0.00041096,120]
[422125421,1778590255000,-226.128836,0.00041096,120]
[422125422,1778590255000,-226.128836,0.00041096,120]
[422125425,1778590255000,-226.128836,0.00041096,120]
[422125427,1778590255000,-226.128836,0.00041096,120]
[422125423,1778590255000,-226.128836,0.00041096,120]
[422125426,1778590255000,-226.128836,0.00041096,120]
[422125424,1778590255000,-226.128836,0.00041096,120]
[422125428,1778590255000,-226.128836,0.00041096,120]
[422125417,1778590255000,-226.128836,0.00041096,120]
[422125456,1778590255000,-251.877461,0.00041096,120]
[422125407,1778590255000,-151.0,0.00041096,120]
[422125460,1778590255000,-151.0,0.00041096,120]
[422125501,1778590255000,-163.80098366,0.00041386,120]
[422125494,1778590255000,-150.0,0.00041357,6]
[422125497,1778590255000,-495.13694843,0.00041365,120]
[422125496,1778590255000,-157.71229644,0.00041365,2]
[422125500,1778590255000,-169.402426,0.00041382,60]
[422125495,1778590255000,-1086.41,0.00041361,2]
[422125490,1778590255000,-261.0,0.00041348,120]
[422125492,1778590255000,-155.0,0.00041348,120]
[422125493,1778590255000,-198.0,0.00041348,120]
[422125499,1778590255000,-1734.62772924,0.00041374,30]
[422125506,1778590255000,-30000.0,0.0004151,2]
[422125491,1778590255000,-298.0,0.00041348,120]
[422125502,1778590255000,-295.38255611,0.00041386,120]
[422125504,1778590255000,-160.37,0.000415,120]
[422125503,1778590255000,-1672.7364795,0.00041386,30]
[422125508,1778590255000,-317.2551,0.00041512,2]
[422125513,1778590255000,-10130.0,0.00041512,30]
[422125512,1778590255000,-5639.71,0.00041512,120]
[422125509,1778590255000,-693.1,0.00041512,60]
[422125507,1778590255000,-26772.34407074,0.0004151,10]
[422125511,1778590255000,-500.0,0.00041512,120]
[422125510,1778590255000,-2437.27,0.00041512,60]
[422125514,1778590255000,-187630.01072617,0.00041512,2]
[422125462,1778590255000,-151.0,0.00041096,120]
[422125505,1778590255000,-510.0,0.00041506,19]
[422125482,1778590255000,-212.89,0.00041342,120]
[422125498,1778590255000,-1562.0,0.0004137,120]
[422125481,1778590255000,-794.77466731,0.00041299,30]
[422125489,1778590255000,-327.0,0.00041348,120]
[422125463,1778590255000,-151.0,0.00041096,120]
[422125465,1778590255000,-151.0,0.00041096,120]
[422125475,1778590255000,-1000.0,0.00041159,60]
[422125474,1778590255000,-171.09,0.00041096,120]
[422125473,1778590255000,-171.09,0.00041096,60]
[422125464,1778590255000,-151.0,0.00041096,120]
[422125466,1778590255000,-232.326994,0.00041096,120]
[422125467,1778590255000,-10000.0,0.00041096,120]
[422125469,1778590255000,-10000.0,0.00041096,120]
[422125468,1778590255000,-10000.0,0.00041096,120]
[422125472,1778590255000,-600.0,0.00041096,120]
[422125470,1778590255000,-10000.0,0.00041096,120]
[422125459,1778590255000,-151.0,0.00041096,120]
[422125485,1778590255000,-155.0,0.00041347,120]
[422125476,1778590255000,-271.94,0.00041217,10]
[422125478,1778590255000,-1815.17,0.00041239,120]
[422125480,1778590255000,-150.14,0.0004128,120]
[422125479,1778590255000,-330.0,0.0004128,90]
[422125484,1778590255000,-338.71562771,0.00041347,120]
[422125487,1778590255000,-250.0,0.00041348,30]
[422125477,1778590255000,-254.52,0.00041217,10]
[422125471,1778590255000,-10000.0,0.00041096,120]
[422125483,1778590255000,-211.29,0.00041342,120]
[422125486,1778590255000,-150.0,0.00041348,2]
[422125488,1778590255000,-158.0,0.00041348,120]
[422125553,1778590256000,-500.0,0.00041512,120]
[422125544,1778590256000,-500.0,0.00041512,120]
[422125555,1778590256000,-500.0,0.00041512,120]
[422125550,1778590256000,-500.0,0.00041512,120]
[422125552,1778590256000,-500.0,0.00041512,120]
[422125545,1778590256000,-500.0,0.00041512,120]
[422125554,1778590256000,-500.0,0.00041512,120]
[422125549,1778590256000,-500.0,0.00041512,120]
[422125547,1778590256000,-500.0,0.00041512,120]
[422125548,1778590256000,-500.0,0.00041512,120]
[422125556,1778590256000,-500.0,0.00041512,120]
[422125551,1778590256000,-617.89245303,0.00041512,120]
[422125557,1778590256000,-500.0,0.00041512,120]
[422125564,1778590256000,-500.0,0.00041512,120]
[422125562,1778590256000,-500.0,0.00041512,120]
[422125561,1778590256000,-500.0,0.00041512,120]
[422125560,1778590256000,-500.0,0.00041512,120]
[422125563,1778590256000,-500.0,0.00041512,120]
[422125568,1778590256000,-500.0,0.00041512,120]
[422125566,1778590256000,-500.0,0.00041512,120]
[422125567,1778590256000,-500.0,0.00041512,120]
[422125559,1778590256000,-500.0,0.00041512,120]
[422125565,1778590256000,-500.0,0.00041512,120]
[422125569,1778590256000,-500.0,0.00041512,120]
[422125571,1778590256000,-604.11111004,0.00041512,120]
[422125558,1778590256000,-500.0,0.00041512,120]
[422125546,1778590256000,-500.0,0.00041512,120]
[422125524,1778590256000,-100000.0,0.00041512,30]
[422125541,1778590256000,-500.0,0.00041512,120]
[422125573,1778590256000,-521.12940949,0.00041512,120]
[422125515,1778590256000,-3239.58326428,0.00041512,2]
[422125517,1778590256000,-10116.45052574,0.00041512,2]
[422125516,1778590256000,-341.63517442,0.00041512,120]
[422125518,1778590256000,-1149.80244039,0.00041512,2]
[422125519,1778590256000,-431096.35711896,0.00041512,2]
[422125520,1778590256000,-1000.0,0.00041512,2]
[422125521,1778590256000,-1351.06948146,0.00041512,2]
[422125522,1778590256000,-500.0,0.00041512,120]
[422125523,1778590256000,-162.2722933,0.00041512,120]
[422125525,1778590256000,-154463.03983791,0.00041512,60]
[422125529,1778590256000,-500.0,0.00041512,120]
[422125543,1778590256000,-500.0,0.00041512,120]
[422125528,1778590256000,-500.0,0.00041512,120]
[422125527,1778590256000,-500.0,0.00041512,120]
[422125531,1778590256000,-500.0,0.00041512,120]
[422125533,1778590256000,-500.0,0.00041512,120]
[422125526,1778590256000,-1000.0,0.00041512,30]
[422125537,1778590256000,-496.80048,0.00041512,120]
[422125534,1778590256000,-500.0,0.00041512,120]
[422125535,1778590256000,-500.0,0.00041512,120]
[422125536,1778590256000,-500.0,0.00041512,120]
[422125539,1778590256000,-500.0,0.00041512,120]
[422125538,1778590256000,-500.0,0.00041512,120]
[422125540,1778590256000,-500.0,0.00041512,120]
[422125542,1778590256000,-500.0,0.00041512,120]
[422125530,1778590256000,-500.0,0.00041512,120]
[422125577,1778590256000,-500.0,0.00041512,120]
[422125532,1778590256000,-500.0,0.00041512,120]
[422125570,1778590256000,-500.0,0.00041512,120]
[422125603,1778590256000,-500.0,0.00041512,120]
[422125605,1778590256000,-500.0,0.00041512,120]
[422125606,1778590256000,-500.0,0.00041512,120]
[422125610,1778590256000,-8336.51,0.00041512,120]
[422125608,1778590256000,-500.0,0.00041512,120]
[422125630,1778590256000,-8336.51,0.00041512,120]
[422125612,1778590256000,-8336.51,0.00041512,120]
[422125613,1778590256000,-8336.51,0.00041512,120]
[422125616,1778590256000,-8336.51,0.00041512,120]
[422125609,1778590256000,-504.96052588,0.00041512,120]
[422125614,1778590256000,-8336.51,0.00041512,120]
[422125611,1778590256000,-8336.51,0.00041512,120]
[422125604,1778590256000,-500.0,0.00041512,120]
[422125617,1778590256000,-8336.51,0.00041512,120]
[422125615,1778590256000,-8336.51,0.00041512,120]
[422125618,1778590256000,-8336.51,0.00041512,120]
[422125621,1778590256000,-8336.51,0.00041512,120]
[422125620,1778590256000,-8336.51,0.00041512,120]
[422125623,1778590256000,-8336.51,0.00041512,120]
[422125622,1778590256000,-8336.51,0.00041512,120]
[422125624,1778590256000,-8336.51,0.00041512,120]
[422125627,1778590256000,-8336.51,0.00041512,120]
[422125625,1778590256000,-8336.51,0.00041512,120]
[422125626,1778590256000,-8336.51,0.00041512,120]
[422125628,1778590256000,-8336.51,0.00041512,120]
[422125574,1778590256000,-550.09006127,0.00041512,120]
[422125619,1778590256000,-8336.51,0.00041512,120]
[422125602,1778590256000,-500.0,0.00041512,120]
[422125629,1778590256000,-8336.51,0.00041512,120]
[422125601,1778590256000,-500.0,0.00041512,120]
[422125600,1778590256000,-500.0,0.00041512,120]
[422125575,1778590256000,-19994.10408148,0.00041512,120]
[422125579,1778590256000,-338.0,0.00041512,120]
[422125572,1778590256000,-500.0,0.00041512,120]
[422125576,1778590256000,-101546.0,0.00041512,32]
[422125578,1778590256000,-500.0,0.00041512,120]
[422125581,1778590256000,-500.0,0.00041512,120]
[422125580,1778590256000,-500.0,0.00041512,120]
[422125584,1778590256000,-500.0,0.00041512,120]
[422125583,1778590256000,-500.0,0.00041512,120]
[422125585,1778590256000,-500.0,0.00041512,120]
[422125587,1778590256000,-500.0,0.00041512,120]
[422125588,1778590256000,-500.0,0.00041512,120]
[422125582,1778590256000,-500.0,0.00041512,120]
[422125592,1778590256000,-500.0,0.00041512,120]
[422125593,1778590256000,-500.0,0.00041512,120]
[422125595,1778590256000,-500.0,0.00041512,120]
[422125589,1778590256000,-500.0,0.00041512,120]
[422125598,1778590256000,-499.68816124,0.00041512,120]
[422125594,1778590256000,-500.0,0.00041512,120]
[422125591,1778590256000,-500.0,0.00041512,120]
[422125590,1778590256000,-500.0,0.00041512,120]
[422125607,1778590256000,-500.0,0.00041512,120]
[422125597,1778590256000,-500.0,0.00041512,120]
[422125599,1778590256000,-152.18,0.00041512,120]
[422125586,1778590256000,-500.0,0.00041512,120]
[422125596,1778590256000,-500.0,0.00041512,120]
[422125670,1778590257000,-530.95,0.00041512,30]
[422125668,1778590257000,-640.08,0.00041512,30]
[422125661,1778590257000,-569.68,0.00041512,30]
[422125665,1778590257000,-557.82,0.00041512,30]
[422125659,1778590257000,-183.75,0.00041512,30]
[422125660,1778590257000,-640.08,0.00041512,30]
[422125657,1778590257000,-117836.22,0.00041512,30]
[422125663,1778590257000,-571.93,0.00041512,30]
[422125671,1778590257000,-569.68,0.00041512,30]
[422125658,1778590257000,-479.29,0.00041512,30]
[422125672,1778590257000,-268.9873881,0.00041512,120]
[422125683,1778590257000,-569.68,0.00041512,30]
[422125674,1778590257000,-479.28,0.00041512,30]
[422125673,1778590257000,-640.08,0.00041512,30]
[422125669,1778590257000,-571.93,0.00041512,30]
[422125676,1778590257000,-569.68,0.00041512,30]
[422125677,1778590257000,-393.72,0.00041512,30]
[422125678,1778590257000,-393.72,0.00041512,30]
[422125679,1778590257000,-569.68,0.00041512,30]
[422125681,1778590257000,-638.97,0.00041512,30]
[422125684,1778590257000,-640.08,0.00041512,30]
[422125680,1778590257000,-571.93,0.00041512,30]
[422125682,1778590257000,-571.93,0.00041512,30]
[422125664,1778590257000,-393.75,0.00041512,30]
[422125675,1778590257000,-571.95,0.00041512,30]
[422125666,1778590257000,-280.24,0.00041512,30]
[422125645,1778590257000,-500.0,0.00041512,120]
[422125662,1778590257000,-9665.72364849,0.00041512,120]
[422125685,1778590257000,-391.58,0.00041512,30]
[422125632,1778590257000,-8336.51,0.00041512,120]
[422125633,1778590257000,-8336.62016132,0.00041512,120]
[422125631,1778590257000,-8336.51,0.00041512,120]
[422125637,1778590257000,-500.0,0.00041512,120]
[422125634,1778590257000,-500.0,0.00041512,70]
[422125639,1778590257000,-500.0,0.00041512,120]
[422125636,1778590257000,-267.17668758,0.00041512,70]
[422125643,1778590257000,-39580.0,0.00041512,109]
[422125644,1778590257000,-1000.0,0.00041512,120]
[422125638,1778590257000,-500.0,0.00041512,120]
[422125642,1778590257000,-634.30838947,0.00041512,120]
[422125667,1778590257000,-393.72,0.00041512,30]
[422125641,1778590257000,-500.0,0.00041512,120]
[422125640,1778590257000,-424.63513797,0.00041512,120]
[422125646,1778590257000,-500.0,0.00041512,120]
[422125647,1778590257000,-500.0,0.00041512,120]
[422125653,1778590257000,-500.0,0.00041512,120]
[422125654,1778590257000,-500.0,0.00041512,120]
[422125650,1778590257000,-500.0,0.00041512,120]
[422125651,1778590257000,-500.0,0.00041512,120]
[422125649,1778590257000,-437.89249042,0.00041512,120]
[422125648,1778590257000,-500.0,0.00041512,120]
[422125655,1778590257000,-500.0,0.00041512,120]
[422125652,1778590257000,-500.0,0.00041512,120]
[422125656,1778590257000,-457.051853,0.00041512,120]
[422125635,1778590257000,-500.0,0.00041512,70]
[422125688,1778590257000,-640.08,0.00041512,30]
[422125707,1778590257000,-307.77895732,0.00041589,90]
[422125689,1778590257000,-581.17,0.00041512,30]
[422125721,1778590257000,-1000.0,0.000418,30]
[422125731,1778590257000,-70000.00000005,0.000419,120]
[422125733,1778590257000,-1562.0,0.00041918,120]
[422125732,1778590257000,-1500.0,0.000419,7]
[422125687,1778590257000,-569.68,0.00041512,30]
[422125724,1778590257000,-330.0,0.0004182,92]
[422125723,1778590257000,-3250.0,0.000418,15]
[422125722,1778590257000,-272.87,0.000418,120]
[422125725,1778590257000,-1000.0,0.00041823,120]
[422125729,1778590257000,-210000.0,0.000419,30]
[422125728,1778590257000,-1815.17,0.00041892,120]
[422125727,1778590257000,-661.29,0.00041888,7]
[422125726,1778590257000,-297.78,0.00041863,120]
[422125730,1778590257000,-58562.34360392,0.000419,120]
[422125737,1778590257000,-1500.0,0.00041977,30]
[422125734,1778590257000,-1555.5,0.00041949,30]
[422125739,1778590257000,-500.0,0.00041989,60]
[422125735,1778590257000,-250.0,0.00041973,120]
[422125736,1778590257000,-525.87575945,0.00041977,30]
[422125738,1778590257000,-151.0,0.00041989,60]
[422125740,1778590257000,-200.0,0.00041999,120]
[422125741,1778590257000,-532.08476084,0.00041999,42]
[422125744,1778590257000,-151.0,0.00041999,70]
[422125743,1778590257000,-151.0,0.00041999,69]
[422125742,1778590257000,-151.0,0.00041999,42]
[422125713,1778590257000,-378.38288071,0.00041644,120]
[422125712,1778590257000,-24658.04650632,0.00041644,120]
[422125720,1778590257000,-1613.0535,0.00041799,30]
[422125716,1778590257000,-1448.6,0.00041694,120]
[422125686,1778590257000,-571.93,0.00041512,30]
[422125692,1778590257000,-569.68,0.00041512,30]
[422125691,1778590257000,-571.93,0.00041512,30]
[422125690,1778590257000,-569.68,0.00041512,30]
[422125694,1778590257000,-571.93,0.00041512,30]
[422125717,1778590257000,-2600.0,0.000417,15]
[422125696,1778590257000,-571.93,0.00041512,30]
[422125701,1778590257000,-154.0,0.00041512,120]
[422125705,1778590257000,-194.79,0.00041517,2]
[422125697,1778590257000,-155.12,0.00041512,30]
[422125693,1778590257000,-569.68,0.00041512,30]
[422125706,1778590257000,-1815.17,0.00041566,120]
[422125699,1778590257000,-571.93,0.00041512,30]
[422125704,1778590257000,-1055.0,0.00041512,120]
[422125695,1778590257000,-500.0,0.00041512,120]
[422125700,1778590257000,-569.68,0.00041512,30]
[422125714,1778590257000,-661.29,0.00041678,7]
[422125715,1778590257000,-566.82,0.00041678,7]
[422125719,1778590257000,-1000.0,0.00041781,30]
[422125708,1778590257000,-62000.0,0.0004159,30]
[422125718,1778590257000,-399956.99,0.000417,120]
[422125711,1778590257000,-1562.0,0.00041644,120]
[422125709,1778590257000,-697.57,0.0004163,2]
[422125702,1778590257000,-279.0,0.00041512,120]
[422125698,1778590257000,-569.68,0.00041512,30]
[422125703,1778590257000,-568.0,0.00041512,120]
[422125710,1778590257000,-500.0,0.00041643,120]
[422125750,1778590258000,-50000.0,0.00042,72]
[422125757,1778590258000,-371.14842887,0.00042,120]
[422125756,1778590258000,-3775.40854725,0.00042,120]
[422125754,1778590258000,-1000000.0,0.00042,120]
[422125755,1778590258000,-571390.54899327,0.00042,120]
[422125752,1778590258000,-243208.5066358,0.00042,120]
[422125745,1778590258000,-151.0,0.00041999,120]
[422125753,1778590258000,-1000000.0,0.00042,120]
[422125751,1778590258000,-50000.0,0.00042,75]
[422125759,1778590258000,-4416.33433234,0.00014478,2]
[422125747,1778590258000,-500.0,0.00041999,69]
[422125748,1778590258000,-500.0,0.00041999,70]
[422125746,1778590258000,-500.0,0.00041999,42]
[422125749,1778590258000,-500.0,0.00041999,120]
[422125758,1778590258000,-5689.62871386,0.00014478,2]
[422125773,1778590258000,-505.74105243,0.00014769,2]
[422125761,1778590258000,-577.14414612,0.00014478,2]
[422125775,1778590258000,-346.93479405,0.00014769,2]
[422125772,1778590258000,-3527.59946186,0.00014769,2]
[422125774,1778590258000,-582.94333414,0.00014769,2]
[422125770,1778590258000,-5362.49022099,0.00014562,2]
[422125768,1778590258000,-932.44982764,0.00014562,2]
[422125766,1778590258000,-184.83,0.00013651,2]
[422125771,1778590258000,-4413.99516145,0.00014703,2]
[422125767,1778590258000,-6716.07310505,0.00014562,2]
[422125765,1778590258000,-184.83,0.00012994,2]
[422125764,1778590258000,-4435.43739459,0.00014703,2]
[422125763,1778590258000,-67.97950138,0.00014478,2]
[422125762,1778590258000,-1627.91270304,0.00014478,2]
[422125769,1778590258000,-184.83,0.00014308,2]
[422125760,1778590258000,-632.01375694,0.00014478,2]
[422125776,1778590259000,29.37450788,0.00012288,30]
[422125777,1778590259000,122.62549212,0.00012288,30]
[422125781,1778590547000,-500.0,0.00014546,2]
[422125782,1778590579000,-156.25547822,0.00014692,2]
[422125783,1778590590000,-150.0,0.00014694,2]
[422125788,1778591052000,152.0,0.000123,30]
[422125790,1778591086000,220.36,7.386e-05,2]
[422125791,1778591086000,220.36,7.76e-05,2]
[422125793,1778591087000,220.36,8.507e-05,2]
[422125792,1778591087000,220.36,8.133e-05,2]
[422125794,1778591149000,-220.36,8.88e-05,2]
[422125795,1778591149000,-220.36,9.254e-05,2]
[422125796,1778591150000,-45.1426831,9.627e-05,2]
[422125798,1778591428000,543.8379,0.00027397,120]
[422125816,1778591431000,-8374.93788229,0.00011,2]
[422125815,1778591431000,-220.36,0.00010748,2]
[422125814,1778591431000,-11072.61375879,0.000107,2]
[422125811,1778591431000,-4348.25526698,0.000107,2]
[422125812,1778591431000,-3993.80444737,0.000107,2]
[422125809,1778591431000,-56.90640433,0.00010699,2]
[422125810,1778591431000,-468.53772795,0.000107,2]
[422125807,1778591431000,-150.0,0.00010699,2]
[422125808,1778591431000,-243.09359567,0.00010699,2]
[422125805,1778591431000,-197.37665,0.00010374,2]
[422125818,1778591431000,-9953.27624073,0.00011099,2]
[422125804,1778591431000,-220.36,0.00010001,2]
[422125802,1778591431000,-175.2173169,9.627e-05,2]
[422125803,1778591431000,-1510.48428863,0.0001,2]
[422125806,1778591431000,-22.98335,0.00010374,2]
[422125817,1778591431000,-8907.88490918,0.00011099,2]
[422125831,1778591431000,-1547.40244283,0.00012538,2]
[422125820,1778591431000,-220.36,0.00011121,2]
[422125834,1778591431000,-933.29910589,0.00012538,2]
[422125833,1778591431000,-642.03266483,0.00012538,2]
[422125832,1778591431000,-594.51805,0.00012538,2]
[422125830,1778591431000,-7831.59906021,0.00012538,2]
[422125827,1778591431000,-220.36,0.00012242,2]
[422125826,1778591431000,-18861.16114982,0.00012065,2]
[422125813,1778591431000,-132690.58658456,0.000107,2]
[422125829,1778591431000,-1061.14312212,0.00012538,2]
[422125825,1778591431000,-220.36,0.00011868,2]
[422125823,1778591431000,-255.0,0.00011737,2]
[422125824,1778591431000,-420.0,0.00011761,2]
[422125822,1778591431000,-18861.16114982,0.00011593,2]
[422125819,1778591431000,-18861.16114982,0.0001112,2]
[422125821,1778591431000,-220.36,0.00011495,2]
[422125828,1778591431000,-5094.08,0.00012409,2]
[422125844,1778591437000,-6251.16670394,0.00012538,2]
[422125846,1778591437000,-185.97,0.00012868,2]
[422125845,1778591437000,-220.36,0.00012615,2]
[422125877,1778591438000,-169.42,0.00014483,2]
[422125883,1778591438000,-900.0,0.000145,5]
[422125881,1778591438000,-2500.0,0.000145,5]
[422125884,1778591438000,-1447.21,0.00014518,2]
[422125900,1778591438000,-500.0,0.00014599,2]
[422125886,1778591438000,-500.0,0.00014599,2]
[422125902,1778591438000,-500.0,0.00014599,2]
[422125898,1778591438000,-435.18898047,0.00014599,2]
[422125888,1778591438000,-156.2180534,0.00014599,2]
[422125892,1778591438000,-500.0,0.00014599,2]
[422125890,1778591438000,-288.10044757,0.00014599,2]
[422125894,1778591438000,-250.0921687,0.00014599,2]
[422125879,1778591438000,-220.36,0.00014483,2]
[422125847,1778591438000,-433.0,0.00012871,2]
[422125926,1778591438000,-500.0,0.00014599,2]
[422125908,1778591438000,-500.0,0.00014599,2]
[422125909,1778591438000,-542.72345038,0.00014599,2]
[422125912,1778591438000,-500.0,0.00014599,2]
[422125923,1778591438000,-500.0,0.00014599,2]
[422125922,1778591438000,-500.0,0.00014599,2]
[422125913,1778591438000,-500.0,0.00014599,2]
[422125915,1778591438000,-500.0,0.00014599,2]
[422125917,1778591438000,-500.0,0.00014599,2]
[422125919,1778591438000,-500.0,0.00014599,2]
[422125921,1778591438000,-500.0,0.00014599,2]
[422125924,1778591438000,-500.0,0.00014599,2]
[422125904,1778591438000,-500.0,0.00014599,2]
[422125896,1778591438000,-500.0,0.00014599,2]
[422125874,1778591438000,-18861.16114982,0.00014428,2]
[422125876,1778591438000,-500.0,0.00014446,2]
[422125848,1778591438000,-500.0,0.00012907,2]
[422125850,1778591438000,-200.0,0.00012918,2]
[422125849,1778591438000,-1115.82,0.00012914,2]
[422125851,1778591438000,-587.0,0.00012928,2]
[422125852,1778591438000,-220.36,0.00012989,2]
[422125853,1778591438000,-500.0,0.00013,2]
[422125854,1778591438000,-208.29546343,0.00013,2]
[422125855,1778591438000,-154.09,0.00013007,2]
[422125857,1778591438000,-2382.12353844,0.0001301,2]
[422125858,1778591438000,-220.36,0.00013362,2]
[422125859,1778591438000,-18861.16114982,0.00013483,2]
[422125856,1778591438000,-16479.03761138,0.0001301,2]
[422125873,1778591438000,-600.0,0.000144,5]
[422125862,1778591438000,-150.0,0.00013488,2]
[422125863,1778591438000,-500.0,0.00013548,2]
[422125861,1778591438000,-150.0,0.00013488,2]
[422125864,1778591438000,-220.36,0.00013736,2]
[422125866,1778591438000,-220.36,0.00014109,2]
[422125867,1778591438000,-600.0,0.000142,5]
[422125865,1778591438000,-18861.16114982,0.00013955,2]
[422125869,1778591438000,-823.0,0.0001421,2]
[422125870,1778591438000,-1200.0,0.000143,5]
[422125868,1778591438000,-200.0,0.000142,5]
[422125871,1778591438000,-400.0,0.000143,5]
[422125875,1778591438000,-426.8409,0.00014446,2]
[422125872,1778591438000,-1900.0,0.000144,5]
[422125860,1778591438000,-150.0,0.00013488,2]
[422125927,1778591438000,-500.0,0.00014599,2]
[422125906,1778591438000,-500.0,0.00014599,2]
[422125929,1778591438000,-500.0,0.00014599,2]
[422125956,1778591438000,-200.0,0.000149,5]
[422125962,1778591438000,-166.90746061,0.00014925,2]
[422125964,1778591438000,-500.0,0.00014973,2]
[422125963,1778591438000,-500.0,0.00014973,2]
[422125965,1778591438000,-471.99431842,0.00014973,2]
[422125966,1778591438000,-500.0,0.00014973,2]
[422125971,1778591438000,-500.0,0.00014999,2]
[422125968,1778591438000,-467.16780039,0.00014999,2]
[422125967,1778591438000,-151.0,0.00014997,2]
[422125969,1778591438000,-500.0,0.00014999,2]
[422125970,1778591438000,-500.0,0.00014999,2]
[422125974,1778591438000,-500.0,0.00014999,2]
[422125973,1778591438000,-500.0,0.00014999,2]
[422125976,1778591438000,-500.0,0.00014999,2]
[422125975,1778591438000,-278.51483444,0.00014999,2]
[422125978,1778591438000,-500.0,0.00014999,2]
[422125977,1778591438000,-226.57709185,0.00014999,2]
[422125984,1778591438000,-10235359.46489637,0.00015,2]
[422125982,1778591438000,-500.0,0.00014999,2]
[422125983,1778591438000,-500.0,0.00014999,2]
[422125979,1778591438000,-500.0,0.00014999,2]
[422125981,1778591438000,-500.0,0.00014999,2]
[422125980,1778591438000,-500.0,0.00014999,2]
[422125985,1778591438000,-788.45865194,0.00015,2]
[422125987,1778591438000,-14450.55675372,0.00015,2]
[422125986,1778591438000,-391.39100056,0.00015,2]
[422125925,1778591438000,-500.0,0.00014599,2]
[422125959,1778591438000,-196.98785889,0.000149,2]
[422125954,1778591438000,-600.0,0.000149,5]
[422125972,1778591438000,-500.0,0.00014999,2]
[422125955,1778591438000,-21585.07902564,0.000149,2]
[422125928,1778591438000,-500.0,0.00014599,2]
[422125960,1778591438000,-1142.18926666,0.000149,2]
[422125934,1778591438000,-500.0,0.00014599,2]
[422125935,1778591438000,-500.0,0.00014599,2]